bitfinex-derivatives/quotes_BTCF0:USTF0_20250902
["timestamp","ask_amount","ask_price","bid_price","bid_amount"]
[1756797132986,0.52961,110300.0,110290.0,0.92928]
[1756797133184,0.52961,110300.0,110290.0,0.20436423]
[1756797133382,0.89961,110300.0,110290.0,0.20436423]
[1756797133583,1.17322842,110300.0,110290.0,0.9294]
[1756797133981,1.17322842,110300.0,110290.0,1.04360423]
[1756797134184,0.93874,110300.0,110290.0,1.04360423]
[1756797134384,0.93874,110300.0,110290.0,1.03960423]
[1756797134685,0.93874,110300.0,110290.0,1.04060423]
[1756797134889,0.93874,110300.0,110290.0,1.04064423]
[1756797135185,1.17322842,110300.0,110290.0,1.04064423]
[1756797135884,1.14409842,110300.0,110290.0,1.04064423]
[1756797136085,0.90961,110300.0,110290.0,1.04064423]
[1756797136484,0.90961,110300.0,110290.0,0.20136423]
[1756797136786,0.90961,110300.0,110290.0,1.04048423]
[1756797137287,0.90961,110300.0,110290.0,0.20136423]
[1756797137477,0.90961,110300.0,110290.0,1.04048423]
[1756797137985,0.90961,110300.0,110290.0,0.20136423]
[1756797138181,0.90961,110300.0,110290.0,1.04032423]
[1756797138385,0.90961,110300.0,110290.0,1.04016423]
[1756797140478,0.90961,110300.0,110290.0,1.27465265]
[1756797141085,0.90961,110300.0,110290.0,1.27425265]
[1756797141284,0.90961,110300.0,110290.0,0.43585265]
[1756797141581,0.90961,110300.0,110290.0,1.27409265]
[1756797141887,0.90961,110300.0,110290.0,1.27405265]
[1756797142387,0.90961,110300.0,110290.0,0.43585265]
[1756797142580,0.90961,110300.0,110290.0,1.27425265]
[1756797142982,0.90961,110300.0,110290.0,1.27429265]
[1756797144886,0.90961,110300.0,110290.0,0.43585265]
[1756797145089,0.90961,110300.0,110290.0,1.27397265]
[1756797146987,0.90961,110300.0,110290.0,1.15976842]
[1756797147188,0.90961,110300.0,110290.0,0.92528]
[1756797147393,0.90961,110300.0,110290.0,1.15976842]
[1756797147790,0.90961,110300.0,110290.0,0.32164842]
[1756797147990,0.90961,110300.0,110290.0,1.15972842]
[1756797151094,0.90961,110300.0,110290.0,1.27393265]
[1756797152093,0.90961,110300.0,110290.0,1.24132949]
[1756797154295,0.90961,110300.0,110290.0,1.15972842]
[1756797154893,0.46463036,110310.0,110290.0,1.40972842]
[1756797155098,0.94095036,110310.0,110300.0,0.48423876]
[1756797155292,0.94095036,110310.0,110300.0,0.40263842]
[1756797155492,0.94095036,110310.0,110300.0,1.24067842]
[1756797155689,0.92048,110310.0,110300.0,1.24067842]
[1756797156294,0.92048,110310.0,110300.0,1.24520842]
[1756797157097,0.92048,110310.0,110300.0,1.24720842]
[1756797157293,0.92048,110310.0,110300.0,0.17468]
[1756797157596,0.88048,110310.0,110300.0,0.40916842]
[1756797157796,0.88048,110310.0,110300.0,1.01272]
[1756797159098,0.88048,110310.0,110300.0,1.01472]
[1756797160598,0.88048,110310.0,110300.0,1.12888423]
[1756797164001,0.88048,110310.0,110300.0,1.36337265]
[1756797164899,0.88048,110310.0,110300.0,1.12888423]
[1756797165605,0.88048,110310.0,110300.0,1.01468]
[1756797169418,0.88048,110310.0,110300.0,1.24916842]
[1756797170108,0.88048,110310.0,110300.0,1.01468]
[1756797170294,0.88048,110310.0,110300.0,1.24916842]
[1756797171609,1.11492382,110310.0,110300.0,1.24912382]
[1756797173613,0.46712,110310.0,110300.0,1.48356764]
[1756797174111,0.77338382,110310.0,110300.0,1.48356764]
[1756797174607,1.12338382,110310.0,110300.0,1.48356764]
[1756797174803,0.88894,110310.0,110300.0,1.24912382]
[1756797175007,1.12338382,110310.0,110300.0,1.24896382]
[1756797176712,1.12338382,110310.0,110300.0,1.01452]
[1756797176926,0.88894,110310.0,110300.0,0.17668]
[1756797177107,1.12338382,110310.0,110300.0,1.24896382]
[1756797179512,0.88894,110310.0,110300.0,0.00853]
[1756797179817,1.12338382,110310.0,110300.0,0.00853]
[1756797180011,1.19467393,110310.0,110300.0,0.00853]
[1756797181521,1.19467393,110310.0,110300.0,0.12273423]
[1756797183823,1.19467393,110310.0,110300.0,0.00853]
[1756797184213,1.19467393,110310.0,110300.0,0.12273423]
[1756797185922,1.19467393,110310.0,110300.0,0.00853]
[1756797186521,1.19467393,110310.0,110300.0,0.09012049]
[1756797190325,0.96023011,110310.0,110300.0,0.13863049]
[1756797190516,1.19467393,110310.0,110300.0,0.09012049]
[1756797191526,0.96023011,110310.0,110300.0,0.09012049]
[1756797191727,1.19467393,110310.0,110300.0,0.09012049]
[1756797193525,1.19467393,110310.0,110300.0,0.00853]
[1756797193726,1.19467393,110310.0,110300.0,0.12273423]
[1756797194724,1.19467393,110310.0,110300.0,0.00853]
[1756797195731,1.42911775,110310.0,110300.0,0.00853]
[1756797196037,1.42911775,110310.0,110300.0,0.09008958]
[1756797197124,1.67911775,110310.0,110300.0,0.01710958]
[1756797197432,0.18996,110300.0,110290.0,0.01819568]
[1756797197619,1.36964764,110300.0,110290.0,0.01819568]
[1756797198715,1.36964764,110300.0,110290.0,0.02119568]
[1756797199132,2.20724764,110300.0,110290.0,0.02119568]
[1756797199330,2.20724764,110300.0,110290.0,0.02319568]
[1756797200232,1.36964764,110300.0,110290.0,0.02319568]
[1756797200432,2.18084764,110300.0,110290.0,0.11626568]
[1756797202230,1.34324764,110300.0,110290.0,0.11626568]
[1756797203734,0.87436,110300.0,110290.0,0.11626568]
[1756797203931,1.34324764,110300.0,110290.0,0.11626568]
[1756797205924,1.34324764,110300.0,110290.0,0.09807]
[1756797206431,1.34324764,110300.0,110290.0,0.1795765]
[1756797207835,1.34324764,110300.0,110290.0,0.1350165]
[1756797208030,1.34324764,110300.0,110290.0,0.1795765]
[1756797209223,1.36964764,110300.0,110290.0,0.0865065]
[1756797211234,1.36964764,110300.0,110270.0,1.2948531]
[1756797211235,1.85409146,110300.0,110270.0,0.18042423]
[1756797211436,0.94901764,110280.0,110270.0,0.15929]
[1756797211734,1.15715368,110280.0,110270.0,0.15929]
[1756797211934,1.15715368,110280.0,110270.0,0.27342941]
[1756797212325,1.15615368,110280.0,110270.0,0.27342941]
[1756797212941,1.15615368,110280.0,110270.0,0.27542941]
[1756797213239,0.68726604,110280.0,110270.0,0.27542941]
[1756797213537,1.15615368,110280.0,110270.0,0.39573382]
[1756797213732,1.15615368,110280.0,110270.0,0.16229]
[1756797215037,0.02303,110270.0,110260.0,0.11413941]
[1756797215225,1.27551764,110270.0,110260.0,0.11413941]
[1756797215532,1.27551764,110270.0,110240.0,0.06648]
[1756797215533,1.25248764,110270.0,110240.0,0.06648]
[1756797215728,0.7216,110250.0,110240.0,0.15723]
[1756797215935,1.31604382,110250.0,110240.0,0.09075]
[1756797216239,1.33609595,110250.0,110240.0,0.15723]
[1756797217130,1.10265213,110250.0,110240.0,0.15723]
[1756797217327,1.33709595,110250.0,110240.0,0.15723]
[1756797217537,1.33709595,110250.0,110240.0,0.99631]
[1756797217932,1.10265213,110250.0,110240.0,0.99631]
[1756797218140,1.33709595,110250.0,110240.0,0.99631]
[1756797218337,1.33709595,110250.0,110240.0,0.92983]
[1756797218642,1.33709595,110250.0,110240.0,0.99631]
[1756797219030,1.35881262,110250.0,110240.0,0.99635]
[1756797219225,1.43260102,110250.0,110240.0,0.99635]
[1756797219636,1.1981572,110250.0,110240.0,0.99635]
[1756797219842,1.43260102,110250.0,110240.0,0.99635]
[1756797220340,1.43260102,110250.0,110240.0,0.99607]
[1756797221542,1.1981572,110250.0,110240.0,0.99607]
[1756797221841,1.43260102,110250.0,110240.0,0.99607]
[1756797222030,1.43260102,110250.0,110240.0,0.99851]
[1756797224041,1.43260102,110250.0,110240.0,0.15723]
[1756797224241,1.43260102,110250.0,110240.0,0.09075]
[1756797224242,1.66704484,110250.0,110240.0,0.09075]
[1756797224750,1.1981572,110250.0,110240.0,0.15723]
[1756797224947,1.43260102,110250.0,110240.0,0.09075]
[1756797225337,1.1981572,110250.0,110240.0,0.15723]
[1756797225547,1.43260102,110250.0,110240.0,0.15723]
[1756797227148,1.1981572,110250.0,110240.0,0.15723]
[1756797227338,1.43260102,110250.0,110240.0,0.15723]
[1756797228347,1.1981572,110250.0,110240.0,0.15723]
[1756797228547,1.43260102,110250.0,110240.0,0.15723]
[1756797229242,1.1981572,110250.0,110240.0,0.15723]
[1756797229451,1.43260102,110250.0,110240.0,0.15723]
[1756797230946,1.43260102,110250.0,110220.0,0.19670796]
[1756797231152,0.59524382,110240.0,110230.0,1.00487]
[1756797231350,0.7308,110240.0,110230.0,1.23931382]
[1756797231544,1.19968764,110240.0,110230.0,1.00487]
[1756797231738,0.7308,110240.0,110230.0,1.23931382]
[1756797231938,0.96524382,110240.0,110230.0,1.23931382]
[1756797232138,0.96524382,110240.0,110230.0,1.00487]
[1756797232340,0.96524382,110240.0,110230.0,1.23931382]
[1756797232839,0.7308,110240.0,110230.0,1.24031382]
[1756797233042,0.96524382,110240.0,110230.0,1.24031382]
[1756797233453,0.7308,110240.0,110230.0,1.00587]
[1756797234953,0.7308,110240.0,110230.0,0.15823]
[1756797235154,0.7308,110240.0,110230.0,1.00575]
[1756797236052,0.6188,110240.0,110230.0,1.00575]
[1756797237656,0.6188,110240.0,110230.0,1.24049933]
[1756797238157,0.0737884,110250.0,110240.0,0.15723]
[1756797238352,0.37,110250.0,110240.0,0.34417153]
[1756797238551,0.37,110250.0,110240.0,0.86215333]
[1756797238855,0.38085213,110270.0,110260.0,0.15723]
[1756797239042,0.71085213,110270.0,110260.0,1.00447]
[1756797239646,0.94560146,110270.0,110260.0,1.00447]
[1756797240048,0.94760146,110270.0,110260.0,1.00447]
[1756797240249,0.95160146,110270.0,110260.0,1.00447]
[1756797242261,0.95160146,110270.0,110260.0,1.06957877]
[1756797242961,0.95160146,110270.0,110260.0,1.06901877]
[1756797243160,0.71685213,110270.0,110260.0,1.06901877]
[1756797243362,0.95160146,110270.0,110260.0,1.06901877]
[1756797244661,0.95160146,110270.0,110260.0,1.06885877]
[1756797246971,0.71685213,110270.0,110260.0,1.06885877]
[1756797247160,0.95160146,110270.0,110260.0,1.06885877]
[1756797250159,1.20160146,110270.0,110260.0,0.22233877]
[1756797250360,1.20160146,110270.0,110260.0,0.11071877]
[1756797250562,1.20160146,110270.0,110260.0,0.00453]
[1756797258074,1.43635079,110270.0,110260.0,0.00453]
[1756797258277,1.43635079,110270.0,110230.0,0.15792]
[1756797258479,0.95634933,110240.0,110230.0,0.15792]
[1756797258679,1.33634933,110240.0,110230.0,0.15792]
[1756797260079,1.33734933,110240.0,110230.0,0.15792]
[1756797260279,1.33734933,110240.0,110230.0,0.15992]
[1756797260680,2.18286933,110240.0,110230.0,0.22505718]
[1756797261182,2.18286933,110240.0,110230.0,0.22405718]
[1756797263282,1.94812,110240.0,110230.0,0.22405718]
[1756797263476,2.18286933,110240.0,110230.0,0.22405718]
[1756797263876,1.94812,110240.0,110230.0,0.22405718]
[1756797264076,1.33734933,110240.0,110230.0,0.22405718]
[1756797265082,1.1026,110240.0,110230.0,0.22405718]
[1756797265282,1.33734933,110240.0,110230.0,0.22405718]
[1756797266479,1.33734933,110240.0,110230.0,0.15892]
[1756797267585,1.33734933,110240.0,110230.0,0.22405718]
[1756797268392,2.18102933,110240.0,110230.0,0.22405718]
[1756797268878,1.1026,110240.0,110230.0,0.22405718]
[1756797269075,2.18102933,110240.0,110230.0,0.22405718]
[1756797269278,1.94628,110240.0,110230.0,0.22405718]
[1756797269483,2.18102933,110240.0,110230.0,0.22405718]
[1756797269676,1.1026,110240.0,110230.0,0.22405718]
[1756797269871,1.1026,110240.0,110230.0,0.47715278]
[1756797270081,1.1026,110240.0,110230.0,0.24240345]
[1756797270283,0.7418,110240.0,110230.0,0.24240345]
[1756797270488,0.7418,110240.0,110230.0,0.4120156]
[1756797270877,0.7418,110240.0,110230.0,0.17726627]
[1756797271487,0.97654933,110240.0,110230.0,0.17726627]
[1756797272481,0.7418,110240.0,110230.0,0.17726627]
[1756797272681,0.97654933,110240.0,110230.0,0.17726627]
[1756797274182,0.7418,110240.0,110230.0,0.17726627]
[1756797274389,0.97654933,110240.0,110230.0,0.17726627]
[1756797276186,0.97654933,110240.0,110230.0,0.09278]
[1756797276381,0.97654933,110240.0,110230.0,0.04723]
[1756797276580,1.82222933,110240.0,110230.0,0.04723]
[1756797276785,1.82222933,110240.0,110230.0,0.09149]
[1756797277994,1.82222933,110240.0,110230.0,0.15564]
[1756797278796,1.58748,110240.0,110230.0,0.15564]
[1756797278995,1.82222933,110240.0,110230.0,0.15564]
[1756797279491,1.82222933,110240.0,110230.0,0.23688584]
[1756797280486,0.97654933,110240.0,110230.0,0.23688584]
[1756797281291,0.7418,110240.0,110230.0,0.23688584]
[1756797281493,0.97654933,110240.0,110230.0,0.23688584]
[1756797284294,0.7418,110240.0,110230.0,0.23688584]
[1756797284502,0.97654933,110240.0,110230.0,0.23688584]
[1756797285293,0.7418,110240.0,110230.0,0.23688584]
[1756797285498,0.97654933,110240.0,110230.0,0.23688584]
[1756797287599,0.7418,110240.0,110230.0,0.23688584]
[1756797287805,0.97654933,110240.0,110230.0,0.23688584]
[1756797289003,0.97654933,110240.0,110230.0,0.15564]
[1756797295607,1.21134338,110240.0,110230.0,0.23725366]
[1756797298808,1.21134338,110240.0,110230.0,0.15564]
[1756797299006,1.21134338,110240.0,110230.0,0.26930339]
[1756797299209,0.7418,110240.0,110230.0,0.26930339]
[1756797299407,1.21134338,110240.0,110230.0,0.26930339]
[1756797300506,1.21134338,110240.0,110230.0,0.20515339]
[1756797301410,1.21134338,110240.0,110230.0,0.26930339]
[1756797301807,1.21134338,110240.0,110230.0,0.20515339]
[1756797302208,1.21134338,110240.0,110230.0,0.26930339]
[1756797302911,1.21134338,110240.0,110230.0,0.20515339]
[1756797303116,1.21134338,110240.0,110230.0,0.11466339]
[1756797304115,1.21134338,110240.0,110230.0,0.20165339]
[1756797304312,1.21134338,110240.0,110230.0,0.11466339]
[1756797304610,1.21134338,110240.0,110230.0,0.15739339]
[1756797305513,1.21134338,110240.0,110230.0,0.20283339]
[1756797306208,1.21134338,110240.0,110230.0,0.27186339]
[1756797306601,1.21134338,110240.0,110230.0,0.1582]
[1756797309722,0.7418,110240.0,110230.0,0.1582]
[1756797310017,1.21134338,110240.0,110230.0,0.1582]
[1756797314622,1.21134338,110240.0,110230.0,0.27186339]
[1756797316218,0.97657169,110240.0,110230.0,0.50663508]
[1756797316823,0.7418,110240.0,110230.0,0.50663508]
[1756797317018,1.21134338,110240.0,110230.0,0.50663508]
[1756797317216,0.97657169,110240.0,110230.0,0.27186339]
[1756797317416,0.97657169,110240.0,110230.0,0.50663508]
[1756797317615,0.97657169,110240.0,110230.0,0.27186339]
[1756797317616,1.21134338,110240.0,110230.0,0.27186339]
[1756797318529,0.7418,110240.0,110230.0,0.1582]
[1756797318717,1.21134338,110240.0,110230.0,0.1582]
[1756797319024,1.21134338,110240.0,110230.0,0.27186339]
[1756797320115,1.21134338,110240.0,110230.0,0.39297169]
[1756797322127,1.21134338,110240.0,110230.0,0.1582]
[1756797322424,1.21134338,110240.0,110230.0,0.39297169]
[1756797322622,0.001,110240.0,110230.0,0.64297169]
[1756797322822,0.00010248,110240.0,110230.0,0.73368139]
[1756797323425,0.00010248,110240.0,110230.0,1.44354674]
[1756797323930,0.00010248,110240.0,110230.0,1.09448139]
[1756797326728,0.00010248,110240.0,110230.0,1.32925308]
[1756797327128,0.00010248,110240.0,110230.0,1.69925308]
[1756797327936,0.00010248,110240.0,110230.0,1.46925308]
[1756797328137,0.00010248,110240.0,110230.0,1.32925308]
[1756797328432,0.00010248,110240.0,110230.0,1.49925308]
[1756797329739,0.00010248,110240.0,110230.0,2.33909308]
[1756797330138,0.02034569,110250.0,110240.0,0.1597311]
[1756797330440,0.02034569,110250.0,110240.0,1.07942448]
[1756797330635,0.02034569,110250.0,110240.0,2.16926448]
[1756797330837,0.02034569,110250.0,110240.0,1.32942448]
[1756797331140,0.02134569,110250.0,110240.0,1.32942448]
[1756797331340,0.02134569,110250.0,110240.0,2.16922448]
[1756797331842,0.02034569,110250.0,110240.0,2.28324822]
[1756797332141,0.02034569,110250.0,110240.0,2.17122448]
[1756797333343,0.02034569,110250.0,110240.0,2.28520822]
[1756797333542,0.02034569,110250.0,110240.0,1.44544822]
[1756797333734,0.02034569,110250.0,110240.0,2.28520822]
[1756797334647,0.02034569,110250.0,110240.0,1.44544822]
[1756797334850,0.02034569,110250.0,110240.0,2.28520822]
[1756797337046,0.02034569,110250.0,110240.0,1.81562484]
[1756797337353,0.63034569,110250.0,110240.0,0.88563]
[1756797337554,0.86511738,110250.0,110240.0,0.93071]
[1756797337851,0.86511738,110250.0,110240.0,0.99255]
[1756797338042,0.63034569,110250.0,110240.0,1.22732169]
[1756797338244,0.86511738,110250.0,110240.0,1.22732169]
[1756797338446,0.86511738,110250.0,110240.0,1.34134543]
[1756797339451,0.86511738,110250.0,110240.0,1.34034543]
[1756797339653,0.86611738,110250.0,110240.0,1.33934543]
[1756797339852,0.63134569,110250.0,110240.0,1.57411712]
[1756797340042,0.001,110250.0,110240.0,1.99299648]
[1756797340242,0.001,110250.0,110240.0,2.47776817]
[1756797340443,0.001,110250.0,110240.0,2.39636617]
[1756797340651,8.677e-05,110250.0,110240.0,2.55636617]
[1756797340846,8.677e-05,110250.0,110240.0,1.48187448]
[1756797341153,8.677e-05,110250.0,110240.0,2.09480502]
[1756797341451,0.23477169,110260.0,110250.0,0.17724]
[1756797341649,0.23477169,110260.0,110250.0,1.35135579]
[1756797342151,0.3608,110280.0,110270.0,0.06184]
[1756797342341,1.19034338,110280.0,110270.0,1.05557396]
[1756797342541,1.19034338,110280.0,110270.0,0.90479396]
[1756797343446,1.19334338,110280.0,110270.0,0.90479396]
[1756797343849,1.19034338,110280.0,110270.0,0.90479396]
[1756797344050,1.19834338,110280.0,110270.0,0.90479396]
[1756797344452,0.7288,110280.0,110270.0,0.90479396]
[1756797344640,0.74533435,110280.0,110270.0,0.90479396]
[1756797344846,1.21487773,110280.0,110270.0,0.94865396]
[1756797345252,1.21487773,110280.0,110270.0,0.99373396]
[1756797346848,1.21487773,110280.0,110270.0,0.94865396]
[1756797348054,1.21487773,110280.0,110270.0,0.99373396]
[1756797348250,1.21487773,110280.0,110270.0,0.06511396]
[1756797348646,1.46487773,110280.0,110270.0,0.06511396]
[1756797349046,1.69964942,110280.0,110270.0,0.06511396]
[1756797349249,1.46487773,110280.0,110270.0,0.06511396]
[1756797350453,1.69964942,110280.0,110270.0,0.06511396]
[1756797350753,1.46487773,110280.0,110270.0,0.06511396]
[1756797350954,1.69964942,110280.0,110260.0,0.06511396]
[1756797351251,1.66994338,110270.0,110260.0,0.06511396]
[1756797351450,2.01994338,110270.0,110250.0,0.9442641]
[1756797351753,0.83034338,110260.0,110250.0,0.9442641]
[1756797351953,1.18034338,110260.0,110250.0,0.92117496]
[1756797352153,0.7108,110260.0,110250.0,0.1724224]
[1756797352349,1.18034338,110260.0,110250.0,0.1724224]
[1756797352554,1.18034338,110260.0,110250.0,0.2342624]
[1756797353450,1.18234338,110260.0,110250.0,0.2607224]
[1756797353652,1.18334338,110260.0,110250.0,0.2607224]
[1756797354857,0.94857169,110260.0,110250.0,0.2607224]
[1756797355245,0.94857169,110260.0,110250.0,0.19551154]
[1756797355452,0.94849692,110260.0,110250.0,1.1164641]
[1756797356455,0.94849692,110260.0,110250.0,0.2769041]
[1756797356654,0.94849692,110260.0,110250.0,1.1164641]
[1756797356849,0.7138,110260.0,110250.0,1.1164641]
[1756797358150,0.7138,110260.0,110250.0,0.2769041]
[1756797358358,0.7138,110260.0,110250.0,1.1164641]
[1756797359367,0.7138,110260.0,110250.0,1.35116102]
[1756797359948,0.7138,110260.0,110250.0,1.1164641]
[1756797360350,0.7138,110260.0,110250.0,1.35116102]
[1756797360351,0.353,110260.0,110250.0,1.35116102]
[1756797361854,0.352,110260.0,110250.0,1.35116102]
[1756797362161,0.002,110260.0,110250.0,1.35116102]
[1756797362462,0.38105886,110270.0,110260.0,0.15078]
[1756797362664,0.38105886,110270.0,110260.0,0.46699632]
[1756797363657,0.38305886,110270.0,110260.0,0.46699632]
[1756797364163,0.38305886,110270.0,110260.0,0.48406171]
[1756797364365,0.38305886,110270.0,110260.0,0.40254231]
[1756797364962,0.38405886,110270.0,110260.0,0.40254231]
[1756797367267,0.02325886,110270.0,110260.0,0.40254231]
[1756797367459,0.02325886,110270.0,110260.0,0.76334231]
[1756797367858,0.02325886,110270.0,110260.0,1.10402781]
[1756797368061,0.02325886,110270.0,110260.0,1.21797945]
[1756797368460,0.02325886,110270.0,110260.0,1.10402781]
[1756797370267,0.02325886,110270.0,110260.0,0.77864539]
[1756797370467,0.02325886,110270.0,110260.0,1.85270231]
[1756797371366,0.02325886,110270.0,110260.0,1.09478086]
[1756797371566,0.02325886,110270.0,110260.0,1.85266231]
[1756797374370,0.02325886,110270.0,110260.0,1.93406262]
[1756797375071,0.02325886,110270.0,110260.0,1.85266231]
[1756797376268,0.02325886,110270.0,110260.0,1.93404859]
[1756797376572,0.02325886,110270.0,110260.0,1.94334751]
[1756797377169,0.003,110270.0,110260.0,1.94334751]
[1756797377470,0.003,110270.0,110260.0,1.94326751]
[1756797379873,0.003,110270.0,110260.0,1.01334231]
[1756797380073,0.003,110270.0,110260.0,1.85254231]
[1756797380576,0.003,110270.0,110260.0,1.47467692]
[1756797381275,0.003,110270.0,110260.0,0.63547692]
[1756797381477,0.003,110270.0,110260.0,1.47463692]
[1756797382076,0.003,110270.0,110260.0,1.23994]
[1756797382279,0.003,110270.0,110260.0,1.47463692]
[1756797383282,0.003,110270.0,110260.0,1.58858856]
[1756797383476,0.003,110270.0,110260.0,1.60537138]
[1756797383673,0.001,110270.0,110260.0,1.60537138]
[1756797383977,0.3608,110280.0,110260.0,1.52674856]
[1756797384278,0.6808,110280.0,110270.0,0.46521734]
[1756797384468,0.6808,110280.0,110270.0,0.48347339]
[1756797386177,0.6838,110280.0,110270.0,0.48347339]
[1756797386576,0.6838,110280.0,110270.0,0.40209297]
[1756797387279,0.6858,110280.0,110270.0,0.40209297]
[1756797388282,0.6858,110280.0,110270.0,0.16739605]
[1756797388580,0.6858,110280.0,110270.0,0.48347339]
[1756797394080,0.6838,110280.0,110270.0,0.48347339]
[1756797394275,0.6858,110280.0,110270.0,0.48347339]
[1756797394971,0.6828,110280.0,110270.0,0.48347339]
[1756797395168,0.6848,110280.0,110270.0,0.48347339]
[1756797396680,0.6848,110280.0,110270.0,0.40209297]
[1756797397176,0.6848,110280.0,110270.0,0.48370897]
[1756797398386,0.6848,110280.0,110270.0,0.40209297]
[1756797399085,0.6848,110280.0,110270.0,0.4837213]
[1756797400183,0.6848,110280.0,110270.0,0.40209297]
[1756797402177,0.6848,110280.0,110270.0,0.28134769]
[1756797402383,0.6848,110280.0,110270.0,1.12010769]
[1756797402583,0.6848,110280.0,110270.0,1.24085297]
[1756797405482,0.004,110280.0,110270.0,2.17622789]
[1756797405677,0.00020117,110280.0,110270.0,2.53702789]
[1756797406382,0.00020117,110280.0,110270.0,2.65119853]
[1756797406785,0.00120117,110280.0,110270.0,2.65119853]
[1756797407379,0.00120117,110280.0,110270.0,2.29119853]
[1756797407686,0.00020117,110280.0,110270.0,2.63119853]
[1756797407887,23.3608,110300.0,110290.0,0.08345]
[1756797408089,23.7408,110300.0,110290.0,1.29803443]
[1756797409492,23.7418,110300.0,110290.0,1.29803443]
[1756797409882,23.7418,110300.0,110290.0,1.06333751]
[1756797410082,23.7418,110300.0,110290.0,1.29803443]
[1756797410283,23.381,110300.0,110290.0,1.40681933]
[1756797410480,23.381,110300.0,110290.0,0.48666182]
[1756797410688,23.381,110300.0,110290.0,1.11403404]
[1756797410982,23.381,110300.0,110290.0,1.34873096]
[1756797411990,23.381,110300.0,110290.0,1.23456032]
[1756797412182,23.382,110300.0,110290.0,1.23456032]
[1756797412791,23.381,110300.0,110290.0,1.23456032]
[1756797413490,23.382,110300.0,110290.0,0.39600032]
[1756797413690,23.382,110300.0,110290.0,1.23448032]
[1756797415087,23.7428,110300.0,110290.0,0.1613034]
[1756797415290,23.9928,110300.0,110290.0,0.0583334]
[1756797415587,24.24798621,110300.0,110290.0,0.8384]
[1756797416193,24.24798621,110300.0,110290.0,0.08139029]
[1756797416494,24.24798621,110300.0,110290.0,0.91979029]
[1756797416794,24.24798621,110300.0,110290.0,0.8384]
[1756797417489,24.48238771,110300.0,110290.0,0.91979029]
[1756797419194,24.23238771,110300.0,110290.0,0.91979029]
[1756797420591,24.23238771,110300.0,110290.0,0.8384]
[1756797421190,24.23238771,110300.0,110280.0,0.3993895]
[1756797421397,0.59534921,110290.0,110280.0,1.2377095]
[1756797421597,0.93534921,110290.0,110280.0,1.2974395]
[1756797421993,0.7008,110290.0,110280.0,1.2974395]
[1756797422695,0.7008,110290.0,110280.0,1.53198871]
[1756797423095,0.7008,110290.0,110280.0,1.2974395]
[1756797423590,0.7008,110290.0,110280.0,1.53198871]
[1756797424097,0.7028,110290.0,110280.0,1.53198871]
[1756797424296,0.7028,110290.0,110280.0,1.2974395]
[1756797425290,0.7048,110290.0,110280.0,1.21604921]
[1756797425598,0.7048,110290.0,110280.0,1.45059842]
[1756797426899,0.93934921,110290.0,110280.0,1.45059842]
[1756797427202,0.93934921,110290.0,110280.0,0.37772921]
[1756797427505,1.18934921,110290.0,110280.0,0.91959029]
[1756797427696,1.18934921,110290.0,110280.0,0.91955029]
[1756797427901,1.18934921,110290.0,110280.0,1.00110029]
[1756797428199,1.18934921,110290.0,110280.0,1.21407921]
[1756797428398,1.18934921,110290.0,110280.0,1.06092029]
[1756797431304,0.9548,110290.0,110280.0,1.2954695]
[1756797431603,1.18934921,110290.0,110280.0,1.2954695]
[1756797431905,1.18934921,110290.0,110280.0,1.21407921]
[1756797433101,1.18934921,110290.0,110280.0,1.2954695]
[1756797434499,0.7048,110290.0,110280.0,1.78001871]
[1756797434699,0.7048,110290.0,110280.0,1.69862842]
[1756797435608,0.7038,110290.0,110280.0,1.69862842]
[1756797436210,0.7028,110290.0,110280.0,0.86046842]
[1756797436412,0.7038,110290.0,110280.0,1.69854842]
[1756797436609,0.93634921,110290.0,110280.0,0.62591921]
[1756797436809,0.93734921,110290.0,110280.0,1.21395921]
[1756797438010,0.93734921,110290.0,110280.0,0.37591921]
[1756797438313,0.93734921,110290.0,110280.0,0.97937]
[1756797438515,0.93734921,110290.0,110280.0,1.21391921]
[1756797439810,0.93734921,110290.0,110280.0,1.2953095]
[1756797443220,0.93734921,110290.0,110280.0,0.4573095]
[1756797443419,0.93734921,110290.0,110280.0,1.2951895]
[1756797444320,0.93734921,110290.0,110280.0,1.21379921]
[1756797444620,0.93734921,110290.0,110280.0,0.97925]
[1756797444918,0.7028,110290.0,110280.0,1.21379921]
[1756797445114,0.93734921,110290.0,110280.0,1.21379921]
[1756797445310,0.93734921,110290.0,110280.0,1.21371921]
[1756797448419,0.93734921,110290.0,110280.0,0.97917]
[1756797448721,0.93734921,110290.0,110280.0,1.21371921]
[1756797450316,0.7028,110290.0,110280.0,1.21371921]
[1756797450521,0.93734921,110290.0,110280.0,1.21371921]
[1756797452026,0.93734921,110290.0,110280.0,1.44826842]
[1756797452225,0.7028,110290.0,110280.0,1.44826842]
[1756797455326,0.7028,110290.0,110280.0,1.52979715]
[1756797456329,0.7028,110290.0,110280.0,1.44826842]
[1756797456524,0.7028,110290.0,110280.0,1.56243906]
[1756797461029,0.7028,110290.0,110280.0,1.52984434]
[1756797461328,0.3628,110290.0,110280.0,1.44826842]
[1756797465229,0.002,110290.0,110280.0,2.13765867]
[1756797465428,0.00013751,110290.0,110280.0,1.78893882]
[1756797465926,0.00013751,110290.0,110280.0,1.90318627]
[1756797467637,0.00013751,110290.0,110280.0,1.92318627]
[1756797468137,23.38128929,110300.0,110290.0,0.14327]
[1756797468335,23.73128929,110300.0,110290.0,0.37781921]
[1756797468526,23.73128929,110300.0,110290.0,0.61236842]
[1756797469143,23.73128929,110300.0,110290.0,0.74661587]
[1756797469936,23.73128929,110300.0,110290.0,0.51206666]
[1756797470237,23.73228929,110300.0,110290.0,0.51206666]
[1756797472939,23.73228929,110300.0,110290.0,0.74661587]
[1756797472940,23.351,110300.0,110290.0,0.74661587]
[1756797473146,23.351,110300.0,110290.0,0.7652787]
[1756797477444,23.351,110300.0,110290.0,0.53072949]
[1756797477743,24.18089842,110300.0,110290.0,0.15291028]
[1756797477942,23.94634921,110300.0,110290.0,0.95702007]
[1756797478146,23.94634921,110300.0,110290.0,1.19156928]
[1756797478446,23.94634921,110300.0,110290.0,1.11005204]
[1756797478647,23.94634921,110300.0,110290.0,0.27321204]
[1756797478944,23.94634921,110300.0,110290.0,1.11005204]
[1756797479533,23.7118,110300.0,110290.0,0.87550283]
[1756797481249,23.7118,110300.0,110290.0,0.95698868]
[1756797481641,23.7118,110300.0,110290.0,0.98975028]
[1756797482044,23.7118,110300.0,110290.0,0.87550283]
[1756797482437,23.7118,110300.0,110290.0,0.98975028]
[1756797482639,23.7118,110300.0,110290.0,1.3063142]
[1756797482942,23.7118,110300.0,110290.0,1.3675342]
[1756797483348,23.351,110300.0,110290.0,1.3675342]